[Event "2nd Goa GM Open 2019"]
[Site "Goa"]
[Date "2019.06.22"]
[Round "6.6"]
[White "Khusenkhojaev, Muhammad"]
[Black "Fier, Alexandr"]
[Result "1/2-1/2"]
[ECO "A05"]
[WhiteElo "2446"]
[BlackElo "2543"]
[Annotator "ChessBase"]
[PlyCount "62"]
[EventDate "2019.06.17"]
[EventType "swiss"]
[EventCountry "IND"]
[SourceTitle "playchess.com"]
[Source "ChessBase"]
[SourceQuality "1"]
[TimeControl "5400+30"]

1. Nf3 {[%emt 0:00:25]} Nf6 {[%emt 0:00:00]} 2. c4 {[%emt 0:00:15]} e6 {[%emt 0:00:00]} 3. Nc3 {[%emt 0:00:16]} d5 {[%emt 0:00:00]} 4. cxd5 {[%emt 0:00:33]} exd5 {[%emt 0:00:01]} 5. d4 {[%emt 0:00:07]} c6 {[%emt 0:00:25]} 6. Bg5 {[%emt 0:00:18]} h6 {[%emt 0:00:06]} 7. Bh4 {[%emt 0:00:10]} Bf5 {[%emt 0:00:06]} 8. e3 {[%emt 0:00:57]} Be7 {[%emt 0:00:22]} 9. Bd3 {[%emt 0:00:59]} Bxd3 {[%emt 0:00:06]} 10. Qxd3 {[%emt 0:00:04]} O-O {[%emt 0:00:07]} 11. O-O {[%emt 0:00:26]} Nbd7 {[%emt 0:00:37]} 12. Rab1 {[%emt 0:02:26]} a5 {[%emt 0:01:14]} 13. Rfc1 {[%emt 0:00:20]} Re8 {[%emt 0:00:06]} 14. Nd2 {[%emt 0:01:37]} Qb8 {[%emt 0:11:21]} 15. Bg3 {[%emt 0:03:06]} Bd6 {[%emt 0:00:39]} 16. Qc2 {[%emt 0:02:24]} Bxg3 {[%emt 0:00:27]} 17. hxg3 {[%emt 0:00:04]} Ng4 {[%emt 0:04:40]} 18. a3 {[%emt 0:08:02]} Ndf6 {[%emt 0:04:34]} 19. Nf1 {[%emt 0:01:19]} Nd7 {[%emt 0:00:00]} 20. b4 {[%emt 0:00:00]} axb4 {[%emt 0:00:00]} 21. axb4 {[%emt 0:00:11]} Ra3 {[%emt 0:00:00]} 22. Nd1 {[%emt 0:02:17]} Qd6 {[%emt 0:08:14]} 23. b5 {[%emt 0:01:08]} Rc8 {[%emt 0:00:03]} 24. Qb2 {[%emt 0:06:24]} Raa8 {[%emt 0:00:37]} 25. bxc6 {[%emt 0:00:14]} bxc6 {[%emt 0:00:04]} 26. Qc2 {[%emt 0:06:36]} c5 {[%emt 0:01:04]} 27. dxc5 {[%emt 0:00:13]} Rxc5 {[%emt 0:00:04]} 28. Qf5 {[%emt 0:01:05]} Ngf6 {[%emt 0:00:09]} 29. Qf4 {[%emt 0:00:35]} Qxf4 {[%emt 0:01:41]} 30. gxf4 {[%emt 0:00:05]} Rxc1 {[%emt 0:00:04]} 31. Rxc1 {[%emt 0:00:05]} d4 {[%emt 0:00:19]} 1/2-1/2

[Event "2nd Goa GM Open 2019"]
[Site "Goa"]
[Date "2019.06.22"]
[Round "6.7"]
[White "Iniyan, P."]
[Black "Viani Antonio Dcunha"]
[Result "1-0"]
[ECO "E97"]
[WhiteElo "2525"]
[BlackElo "2362"]
[Annotator "ChessBase"]
[PlyCount "73"]
[EventDate "2019.06.17"]
[EventType "swiss"]
[EventCountry "IND"]
[SourceTitle "playchess.com"]
[Source "ChessBase"]
[SourceQuality "1"]
[TimeControl "5400+30"]

1. d4 {[%emt 0:00:03]} Nf6 {[%emt 0:00:06]} 2. c4 {[%emt 0:00:06]} g6 {[%emt 0:00:19]} 3. Nc3 {[%emt 0:00:06]} Bg7 {[%emt 0:00:12]} 4. e4 {[%emt 0:00:07]} d6 {[%emt 0:00:10]} 5. Nf3 {[%emt 0:00:04]} O-O {[%emt 0:00:26]} 6. Be2 {[%emt 0:00:04]} e5 {[%emt 0:00:52]} 7. O-O {[%emt 0:00:07]} Nc6 {[%emt 0:00:15]} 8. d5 {[%emt 0:00:04]} Ne7 {[%emt 0:00:09]} 9. b4 {[%emt 0:00:03]} Nh5 {[%emt 0:02:05]} 10. Re1 {[%emt 0:04:57]} Nf4 {[%emt 0:07:15]} 11. Bf1 {[%emt 0:05:11]} a5 {[%emt 0:02:42]} 12. bxa5 {[%emt 0:10:01]} c5 {[%emt 0:02:44]} 13. a4 {[%emt 0:04:16]} Rxa5 {[%emt 0:02:24]} 14. Ra3 {[%emt 0:01:36]} h6 {[%emt 0:07:40]} 15. g3 {[%emt 0:05:47]} Nh3+ {[%emt 0:06:49]} 16. Kg2 {[%emt 0:02:10]} f5 {[%emt 0:11:36]} 17. exf5 {[%emt 0:00:35]} Nxf5 {[%emt 0:01:55]} 18. Ne4 {[%emt 0:01:50]} Qd7 {[%emt 0:18:34]} 19. Be2 {[%emt 0:12:34]} g5 {[%emt 0:07:54]} 20. g4 {[%emt 0:01:14]} Ne7 {[%emt 0:03:11]} 21. Nxe5 {[%emt 0:00:15]} Bxe5 {[%emt 0:00:22]} 22. Rxh3 {[%emt 0:00:09]} Bg7 {[%emt 0:09:49]} 23. Qd3 {[%emt 0:00:32]} Rf7 {[%emt 0:06:31]} 24. Bxg5 {[%emt 0:03:24]} Ng6 {[%emt 0:00:11]} 25. Bd2 {[%emt 0:00:39]} Nf4+ {[%emt 0:01:00]} 26. Bxf4 {[%emt 0:00:13]} Rxf4 {[%emt 0:00:03]} 27. Bd1 {[%emt 0:00:47]} Ra6 {[%emt 0:02:09]} 28. Rhe3 {[%emt 0:03:22]} Qf7 {[%emt 0:02:10]} 29. f3 {[%emt 0:02:14]} Bf8 {[%emt 0:02:36]} 30. Ng3 {[%emt 0:02:52]} Bd7 {[%emt 0:01:36]} 31. Re4 {[%emt 0:01:55]} Rxe4 {[%emt 0:00:08]} 32. Rxe4 {[%emt 0:00:06]} Bxa4 {[%emt 0:00:42]} 33. Bxa4 {[%emt 0:00:17]} Rxa4 {[%emt 0:00:02]} 34. Qe2 {[%emt 0:00:20]} Qf6 {[%emt 0:00:53]} 35. Re8 {[%emt 0:00:07]} Qf7 {[%emt 0:00:55]} 36. Nf5 {[%emt 0:00:30]} Kh7 {[%emt 0:00:33]} 37. Qe6 {[%emt 0:00:08]} 1-0

[Event "2nd Goa GM Open 2019"]
[Site "Goa"]
[Date "2019.06.22"]
[Round "6.8"]
[White "Rahul Srivatshav P"]
[Black "Malakhatko, Vadim"]
[Result "1-0"]
[ECO "A09"]
[WhiteElo "2395"]
[BlackElo "2505"]
[Annotator "ChessBase"]
[PlyCount "61"]
[EventDate "2019.06.17"]
[EventType "swiss"]
[EventCountry "IND"]
[SourceTitle "playchess.com"]
[Source "ChessBase"]
[SourceQuality "1"]
[TimeControl "5400+30"]

1. Nf3 {[%emt 0:00:00]} d5 {[%emt 0:06:30]} 2. c4 {[%emt 0:00:00]} dxc4 {[%emt 0:00:43]} 3. e3 {[%emt 0:04:14]} Nf6 {[%emt 0:02:43]} 4. Bxc4 {[%emt 0:00:41]} e6 {[%emt 0:00:17]} 5. O-O {[%emt 0:00:13]} c5 {[%emt 0:00:19]} 6. Qe2 {[%emt 0:02:56]} a6 {[%emt 0:04:42]} 7. Rd1 {[%emt 0:02:09]} Nbd7 {[%emt 0:03:37]} 8. d4 {[%emt 0:05:43]} Qc7 {[%emt 0:05:40]} 9. a4 {[%emt 0:07:44]} Bd6 {[%emt 0:03:47]} 10. Nc3 {[%emt 0:11:08]} O-O {[%emt 0:03:10]} 11. h3 {[%emt 0:03:38]} h6 {[%emt 0:03:44]} 12. dxc5 {[%emt 0:11:24]} Bxc5 {[%emt 0:02:39]} 13. e4 {[%emt 0:11:00]} Rd8 {[%emt 0:10:45]} 14. e5 {[%emt 0:02:27]} Nh7 {[%emt 0:00:30]} 15. Ne4 {[%emt 0:00:39]} b6 {[%emt 0:02:10]} 16. Bf4 {[%emt 0:03:48]} Bb7 {[%emt 0:00:09]} 17. Rac1 {[%emt 0:02:16]} Bc6 {[%emt 0:00:33]} 18. b3 {[%emt 0:07:13]} Qb7 {[%emt 0:00:26]} 19. Nd6 {[%emt 0:00:29]} Bxd6 {[%emt 0:01:39]} 20. Rxd6 {[%emt 0:00:06]} Nc5 {[%emt 0:00:23]} 21. b4 {[%emt 0:03:47]} Bxf3 {[%emt 0:25:45]} 22. gxf3 {[%emt 0:00:12]} Nxa4 {[%emt 0:00:37]} 23. Bxa6 {[%emt 0:00:07]} Qe7 {[%emt 0:00:05]} 24. Bb5 {[%emt 0:05:48]} Qh4 {[%emt 0:01:09]} 25. Qd2 {[%emt 0:01:07]} Rf8 {[%emt 0:00:13]} 26. Kg2 {[%emt 0:01:07]} f6 {[%emt 0:12:51]} 27. Rc7 {[%emt 0:01:43]} Kh8 {[%emt 0:02:22]} 28. Rdd7 {[%emt 0:01:49]} Qh5 {[%emt 0:00:21]} 29. Bxh6 {[%emt 0:03:18]} Qg6+ {[%emt 0:02:09]} 30. Kh2 {[%emt 0:00:34]} gxh6 {[%emt 0:00:08]} 31. Rxh7+ {[%emt 0:00:05]} 1-0

[Event "2nd Goa GM Open 2019"]
[Site "Goa"]
[Date "2019.06.22"]
[Round "6.9"]
[White "Sankalp Gupta"]
[Black "Anurag, Mhamal"]
[Result "1-0"]
[ECO "B35"]
[WhiteElo "2359"]
[BlackElo "2497"]
[Annotator "ChessBase"]
[PlyCount "75"]
[EventDate "2019.06.17"]
[EventType "swiss"]
[EventCountry "IND"]
[SourceTitle "playchess.com"]
[Source "ChessBase"]
[SourceQuality "1"]
[TimeControl "5400+30"]

1. e4 {[%emt 0:00:10]} c5 {[%emt 0:01:28]} 2. Nf3 {[%emt 0:00:28]} Nc6 {[%emt 0:00:32]} 3. Nc3 {[%emt 0:00:30]} g6 {[%emt 0:13:50]} 4. d4 {[%emt 0:00:21]} cxd4 {[%emt 0:00:04]} 5. Nxd4 {[%emt 0:00:07]} Bg7 {[%emt 0:00:02]} 6. Be3 {[%emt 0:00:17]} Nf6 {[%emt 0:00:03]} 7. Bc4 {[%emt 0:00:06]} Qa5 {[%emt 0:02:50]} 8. O-O {[%emt 0:02:09]} O-O {[%emt 0:01:48]} 9. Bb3 {[%emt 0:02:08]} d6 {[%emt 0:20:56]} 10. h3 {[%emt 0:00:08]} Nxd4 {[%emt 0:19:34]} 11. Bxd4 {[%emt 0:00:14]} Be6 {[%emt 0:00:02]} 12. Nd5 {[%emt 0:06:05]} Bxd5 {[%emt 0:05:27]} 13. exd5 {[%emt 0:01:02]} Nh5 {[%emt 0:00:02]} 14. Re1 {[%emt 0:03:42]} Rfe8 {[%emt 0:01:05]} 15. Re3 {[%emt 0:08:39]} Rac8 {[%emt 0:01:06]} 16. Bxg7 {[%emt 0:05:41]} Nxg7 {[%emt 0:00:31]} 17. g4 {[%emt 0:00:02]} Qc7 {[%emt 0:18:30]} 18. Qe2 {[%emt 0:01:02]} Qd7 {[%emt 0:00:06]} 19. Re1 {[%emt 0:03:34]} e5 {[%emt 0:00:20]} 20. dxe6 {[%emt 0:00:25]} fxe6 {[%emt 0:00:08]} 21. c3 {[%emt 0:00:35]} d5 {[%emt 0:01:18]} 22. Qd3 {[%emt 0:02:07]} b5 {[%emt 0:00:21]} 23. h4 {[%emt 0:01:39]} Rf8 {[%emt 0:02:32]} 24. h5 {[%emt 0:03:40]} Qf7 {[%emt 0:00:41]} 25. R1e2 {[%emt 0:10:35]} gxh5 {[%emt 0:02:58]} 26. Bc2 {[%emt 0:03:46]} Qg6 {[%emt 0:00:05]} 27. Qxb5 {[%emt 0:00:18]} Nf5 {[%emt 0:05:01]} 28. f3 {[%emt 0:08:51]} hxg4 {[%emt 0:00:25]} 29. Rxe6 {[%emt 0:02:11]} Qg5 {[%emt 0:02:12]} 30. f4 {[%emt 0:00:07]} Qxf4 {[%emt 0:00:29]} 31. Qxd5 {[%emt 0:00:02]} Kg7 {[%emt 0:00:31]} 32. R6e4 {[%emt 0:07:44]} Qc1+ {[%emt 0:00:04]} 33. Re1 {[%emt 0:00:06]} Qg5 {[%emt 0:00:30]} 34. Re7+ {[%emt 0:01:56]} Qxe7 {[%emt 0:00:57]} 35. Rxe7+ {[%emt 0:00:03]} Nxe7 {[%emt 0:00:04]} 36. Qe5+ {[%emt 0:00:10]} Kf7 {[%emt 0:00:01]} 37. Bb3+ {[%emt 0:00:44]} Ke8 {[%emt 0:00:18]} 38. Be6 {[%emt 0:00:22]} 1-0

[Event "2nd Goa GM Open 2019"]
[Site "Goa"]
[Date "2019.06.22"]
[Round "6.10"]
[White "Venkatesh, M.R."]
[Black "Mitrabha, Guha"]
[Result "1/2-1/2"]
[ECO "A07"]
[WhiteElo "2490"]
[BlackElo "2341"]
[Annotator "ChessBase"]
[PlyCount "60"]
[EventDate "2019.06.17"]
[EventType "swiss"]
[EventCountry "IND"]
[SourceTitle "playchess.com"]
[Source "ChessBase"]
[SourceQuality "1"]
[TimeControl "5400+30"]

1. Nf3 {[%emt 0:03:13]} Nf6 {[%emt 0:00:00]} 2. g3 {[%emt 0:00:20]} d5 {[%emt 0:00:00]} 3. Bg2 c6 {[%emt 0:00:00]} 4. O-O {[%emt 0:01:07]} Bg4 {[%emt 0:00:04]} 5. d3 {[%emt 0:00:48]} Nbd7 {[%emt 0:00:05]} 6. Nbd2 {[%emt 0:00:08]} e5 {[%emt 0:00:15]} 7. e4 {[%emt 0:00:39]} Bd6 {[%emt 0:00:12]} 8. h3 {[%emt 0:03:09]} Bh5 {[%emt 0:01:09]} 9. Qe1 {[%emt 0:00:39]} O-O {[%emt 0:00:13]} 10. Nh4 {[%emt 0:00:20]} dxe4 {[%emt 0:00:39]} 11. dxe4 {[%emt 0:00:15]} Nc5 {[%emt 0:00:19]} 12. Nb3 {[%emt 0:19:21]} Ne6 {[%emt 0:00:34]} 13. Be3 {[%emt 0:01:08]} Re8 {[%emt 0:00:30]} 14. Nf5 {[%emt 0:06:09]} Bf8 {[%emt 0:01:12]} 15. f3 {[%emt 0:00:08]} Nd7 {[%emt 0:02:05]} 16. Qf2 {[%emt 0:09:54]} b6 {[%emt 0:00:37]} 17. Rfd1 {[%emt 0:00:18]} Qc7 {[%emt 0:00:37]} 18. Bf1 {[%emt 0:00:17]} a5 {[%emt 0:00:59]} 19. a4 {[%emt 0:00:41]} Nec5 {[%emt 0:01:44]} 20. Nd2 {[%emt 0:09:59]} Bg6 {[%emt 0:13:23]} 21. Nh4 {[%emt 0:08:46]} Rab8 {[%emt 0:05:38]} 22. Nc4 {[%emt 0:01:34]} Ne6 {[%emt 0:00:11]} 23. Nxg6 {[%emt 0:03:59]} hxg6 {[%emt 0:00:02]} 24. h4 {[%emt 0:01:02]} Bc5 {[%emt 0:00:18]} 25. c3 {[%emt 0:03:43]} Red8 {[%emt 0:09:41]} 26. Bh3 {[%emt 0:03:01]} Nef8 {[%emt 0:01:00]} 27. Bf1 {[%emt 0:06:26]} Ne6 {[%emt 0:00:19]} 28. Bh3 {[%emt 0:00:45]} Nef8 {[%emt 0:00:03]} 29. Bf1 {[%emt 0:00:21]} Ne6 {[%emt 0:00:30]} 30. Bh3 {[%emt 0:00:05]} Nef8 {[%emt 0:00:02]} 1/2-1/2

[Event "2nd Goa GM Open 2019"]
[Site "Goa"]
[Date "2019.06.22"]
[Round "6.11"]
[White "Rahman, Ziaur"]
[Black "Rathanvel, V S"]
[Result "1-0"]
[ECO "A45"]
[WhiteElo "2481"]
[BlackElo "2314"]
[Annotator "ChessBase"]
[PlyCount "61"]
[EventDate "2019.06.17"]
[EventType "swiss"]
[EventCountry "IND"]
[SourceTitle "playchess.com"]
[Source "ChessBase"]
[SourceQuality "1"]
[TimeControl "5400+30"]

1. d4 {[%emt 0:00:44]} Nf6 {[%emt 0:00:00]} 2. Bg5 {[%emt 0:00:09]} Ne4 {[%emt 0:00:00]} 3. Bf4 {[%emt 0:00:05]} c5 {[%emt 0:01:46]} 4. f3 {[%emt 0:00:14]} Qa5+ {[%emt 0:00:03]} 5. c3 {[%emt 0:00:06]} Nf6 {[%emt 0:00:07]} 6. d5 {[%emt 0:00:14]} Qb6 {[%emt 0:00:13]} 7. Bc1 {[%emt 0:00:29]} e6 {[%emt 0:00:12]} 8. e4 {[%emt 0:00:36]} exd5 {[%emt 0:00:07]} 9. exd5 {[%emt 0:00:21]} c4 {[%emt 0:15:58]} 10. Bxc4 {[%emt 0:03:33]} Bc5 {[%emt 0:00:06]} 11. Ne2 {[%emt 0:00:41]} O-O {[%emt 0:01:55]} 12. a4 {[%emt 0:12:46]} d6 {[%emt 0:13:21]} 13. Na3 {[%emt 0:05:44]} a5 {[%emt 0:05:19]} 14. Bb5 {[%emt 0:06:38]} Bd7 {[%emt 0:04:28]} 15. Nc4 {[%emt 0:07:56]} Qc7 {[%emt 0:02:02]} 16. Qd3 {[%emt 0:05:48]} Re8 {[%emt 0:08:31]} 17. Bg5 {[%emt 0:03:50]} Bxb5 {[%emt 0:01:12]} 18. axb5 {[%emt 0:00:12]} Nbd7 {[%emt 0:00:04]} 19. O-O-O {[%emt 0:01:46]} Nxd5 {[%emt 0:17:36]} 20. Qxd5 {[%emt 0:07:58]} Rxe2 {[%emt 0:00:26]} 21. Rhe1 {[%emt 0:04:21]} Rxe1 {[%emt 0:22:42]} 22. Rxe1 {[%emt 0:00:15]} Ne5 23. f4 {[%emt 0:08:54]} Ng6 {[%emt 0:00:09]} 24. h4 {[%emt 0:07:54]} Bf2 {[%emt 0:00:38]} 25. Re4 {[%emt 0:01:46]} Bxh4 {[%emt 0:01:01]} 26. Bxh4 Nxh4 {[%emt 0:00:06]} 27. f5 {[%emt 0:02:48]} g5 {[%emt 0:03:06]} 28. Nxd6 {[%emt 0:03:01]} Rf8 {[%emt 0:01:35]} 29. g3 {[%emt 0:01:47]} Nf3 {[%emt 0:00:24]} 30. f6 {[%emt 0:02:18]} Qb6 {[%emt 0:01:18]} 31. Rd4 {[%emt 0:01:45]} 1-0

[Event "2nd Goa GM Open 2019"]
[Site "Goa"]
[Date "2019.06.22"]
[Round "6.14"]
[White "Aleksandrov, Aleksej"]
[Black "Bharath Subramaniyam H"]
[Result "1-0"]
[ECO "A61"]
[WhiteElo "2588"]
[BlackElo "2383"]
[Annotator "ChessBase"]
[PlyCount "49"]
[EventDate "2019.06.17"]
[EventType "swiss"]
[EventCountry "IND"]
[SourceTitle "playchess.com"]
[Source "ChessBase"]
[SourceQuality "1"]
[TimeControl "5400+30"]

1. d4 {[%emt 0:05:41]} Nf6 {[%emt 0:00:15]} 2. c4 {[%emt 0:00:05]} e6 {[%emt 0:00:10]} 3. Nc3 {[%emt 0:00:03]} c5 {[%emt 0:00:18]} 4. d5 {[%emt 0:00:02]} exd5 {[%emt 0:00:13]} 5. cxd5 {[%emt 0:00:02]} d6 {[%emt 0:00:09]} 6. Nf3 {[%emt 0:00:09]} g6 {[%emt 0:00:07]} 7. Bf4 {[%emt 0:00:02]} a6 {[%emt 0:01:05]} 8. a4 {[%emt 0:04:46]} Bg7 {[%emt 0:00:16]} 9. e3 {[%emt 0:00:37]} O-O {[%emt 0:01:27]} 10. Be2 {[%emt 0:00:10]} Bg4 {[%emt 0:07:24]} 11. O-O {[%emt 0:00:14]} Bxf3 {[%emt 0:00:46]} 12. Bxf3 {[%emt 0:00:04]} Qe7 {[%emt 0:00:59]} 13. Rb1 {[%emt 0:05:53]} Nbd7 {[%emt 0:04:08]} 14. Qd2 {[%emt 0:00:12]} Rfc8 {[%emt 0:10:59]} 15. Rfc1 {[%emt 0:00:00]} Rf8 {[%emt 0:00:00]} 16. Rf1 {[%emt 0:01:00]} Rfc8 {[%emt 0:01:00]} 17. Rfc1 {[%emt 0:00:43]} Ne8 {[%emt 0:02:43]} 18. a5 {[%emt 0:00:30]} g5 {[%emt 0:00:30]} 19. Bg3 {[%emt 0:00:30]} f5 {[%emt 0:00:30]} 20. Na4 {[%emt 0:00:30]} Nef6 {[%emt 0:00:30]} 21. b4 {[%emt 0:00:30]} cxb4 {[%emt 0:00:30]} 22. Qxb4 {[%emt 0:00:30]} Ne4 {[%emt 0:00:30]} 23. Be2 {[%emt 0:00:30]} Ne5 {[%emt 0:00:30]} 24. Qd2 {[%emt 0:12:13]} Rab8 {[%emt 0:38:17]} 25. Qb4 {[%emt 0:09:39]} 1-0

[Event "2nd Goa GM Open 2019"]
[Site "Goa"]
[Date "2019.06.22"]
[Round "6.15"]
[White "Gusain, Himal"]
[Black "Turov, Maxim"]
[Result "1-0"]
[ECO "A05"]
[WhiteElo "2404"]
[BlackElo "2579"]
[Annotator "ChessBase"]
[PlyCount "99"]
[EventDate "2019.06.17"]
[EventType "swiss"]
[EventCountry "IND"]
[SourceTitle "playchess.com"]
[Source "ChessBase"]
[SourceQuality "1"]
[TimeControl "5400+30"]

1. Nf3 {[%emt 0:00:00]} Nf6 {[%emt 0:00:53]} 2. c4 {[%emt 0:00:00]} e6 {[%emt 0:03:25]} 3. e3 {[%emt 0:01:04]} c5 {[%emt 0:02:06]} 4. b3 {[%emt 0:00:30]} Be7 {[%emt 0:03:54]} 5. Bb2 {[%emt 0:00:24]} O-O {[%emt 0:00:35]} 6. Be2 {[%emt 0:05:00]} b6 {[%emt 0:01:31]} 7. O-O {[%emt 0:00:15]} Bb7 {[%emt 0:00:04]} 8. Nc3 {[%emt 0:00:55]} d6 {[%emt 0:05:52]} 9. d4 {[%emt 0:01:39]} cxd4 {[%emt 0:00:49]} 10. Nxd4 {[%emt 0:00:19]} a6 {[%emt 0:00:39]} 11. Bf3 {[%emt 0:00:42]} Qc7 {[%emt 0:00:33]} 12. Bxb7 {[%emt 0:05:25]} Qxb7 {[%emt 0:02:34]} 13. Qe2 {[%emt 0:00:10]} Nbd7 {[%emt 0:00:56]} 14. e4 {[%emt 0:02:41]} Ne5 {[%emt 0:20:20]} 15. Rad1 {[%emt 0:01:20]} Rfd8 {[%emt 0:03:07]} 16. Rd2 {[%emt 0:03:15]} Ng6 {[%emt 0:04:51]} 17. g3 {[%emt 0:02:01]} Bf8 {[%emt 0:06:20]} 18. Rfd1 {[%emt 0:00:57]} Rab8 {[%emt 0:04:24]} 19. a4 {[%emt 0:04:16]} Rbc8 {[%emt 0:05:47]} 20. Nf3 {[%emt 0:01:36]} Be7 {[%emt 0:03:15]} 21. Ba3 {[%emt 0:02:49]} Ne8 {[%emt 0:04:02]} 22. h4 {[%emt 0:03:42]} h6 {[%emt 0:01:01]} 23. Qe3 {[%emt 0:05:47]} Bf6 {[%emt 0:06:03]} 24. Bxd6 {[%emt 0:02:01]} Nxd6 {[%emt 0:05:51]} 25. Rxd6 {[%emt 0:00:18]} Rxd6 {[%emt 0:00:19]} 26. Rxd6 {[%emt 0:00:07]} Qc7 {[%emt 0:00:31]} 27. Rd3 {[%emt 0:02:52]} Qc5 {[%emt 0:02:02]} 28. Qd2 {[%emt 0:02:46]} Qa3 {[%emt 0:05:42]} 29. Nd1 {[%emt 0:03:17]} Qc5 {[%emt 0:02:36]} 30. Qe2 {[%emt 0:02:07]} Bd8 {[%emt 0:02:04]} 31. Ne3 {[%emt 0:02:26]} Ne7 {[%emt 0:00:11]} 32. Nd4 {[%emt 0:00:47]} Bc7 {[%emt 0:00:58]} 33. Nf3 {[%emt 0:05:01]} Nc6 {[%emt 0:00:18]} 34. Kg2 {[%emt 0:01:09]} Nb4 {[%emt 0:01:31]} 35. Rd2 {[%emt 0:01:17]} Nc6 {[%emt 0:00:44]} 36. Nc2 {[%emt 0:01:23]} Bd6 {[%emt 0:00:46]} 37. Nfd4 {[%emt 0:01:55]} Nxd4 {[%emt 0:01:03]} 38. Nxd4 {[%emt 0:00:16]} Qc7 {[%emt 0:00:19]} 39. Nc2 {[%emt 0:02:03]} Bc5 {[%emt 0:00:09]} 40. Qd3 {[%emt 0:00:32]} Bf8 {[%emt 0:01:04]} 41. Qd7 {[%emt 0:01:30]} Qxd7 {[%emt 0:00:22]} 42. Rxd7 {[%emt 0:00:30]} b5 {[%emt 0:00:01]} 43. axb5 {[%emt 0:00:39]} axb5 {[%emt 0:00:04]} 44. Ne3 {[%emt 0:01:08]} Bc5 {[%emt 0:00:49]} 45. cxb5 {[%emt 0:00:05]} Rb8 {[%emt 0:01:13]} 46. Nc4 {[%emt 0:01:06]} Rxb5 {[%emt 0:00:07]} 47. Rd8+ {[%emt 0:00:33]} Kh7 {[%emt 0:00:04]} 48. Rd3 {[%emt 0:00:04]} g5 {[%emt 0:00:10]} 49. h5 {[%emt 0:01:15]} Kg7 {[%emt 0:00:45]} 50. f4 {[%emt 0:01:55]} 1-0

[Event "2nd Goa GM Open 2019"]
[Site "Goa"]
[Date "2019.06.22"]
[Round "6.16"]
[White "Paichadze, Luka"]
[Black "Nitish Belurkar"]
[Result "1-0"]
[ECO "C13"]
[WhiteElo "2557"]
[BlackElo "2353"]
[Annotator "ChessBase"]
[PlyCount "65"]
[EventDate "2019.06.17"]
[EventType "swiss"]
[EventCountry "IND"]
[SourceTitle "playchess.com"]
[Source "ChessBase"]
[SourceQuality "1"]
[TimeControl "5400+30"]

1. e4 {[%emt 0:04:40]} e6 {[%emt 0:00:00]} 2. d4 {[%emt 0:00:55]} d5 {[%emt 0:00:00]} 3. Nc3 {[%emt 0:01:20]} Nf6 {[%emt 0:00:10]} 4. Bg5 {[%emt 0:01:54]} Be7 {[%emt 0:00:10]} 5. e5 {[%emt 0:01:21]} Nfd7 {[%emt 0:00:09]} 6. h4 {[%emt 0:01:02]} c5 {[%emt 0:00:10]} 7. Bxe7 {[%emt 0:00:59]} Kxe7 {[%emt 0:00:09]} 8. Nf3 {[%emt 0:00:16]} Nc6 {[%emt 0:03:12]} 9. dxc5 {[%emt 0:03:25]} Ndxe5 {[%emt 0:03:47]} 10. Nxe5 {[%emt 0:01:16]} Nxe5 {[%emt 0:00:11]} 11. Qe2 {[%emt 0:03:13]} Nc6 {[%emt 0:03:39]} 12. O-O-O {[%emt 0:00:07]} Kf8 {[%emt 0:00:35]} 13. h5 {[%emt 0:03:12]} h6 {[%emt 0:02:28]} 14. f4 {[%emt 0:01:59]} Qa5 {[%emt 0:04:42]} 15. Qf2 {[%emt 0:02:20]} Bd7 {[%emt 0:17:47]} 16. Bb5 {[%emt 0:00:21]} a6 {[%emt 0:04:12]} 17. Bxc6 {[%emt 0:00:12]} bxc6 {[%emt 0:00:06]} 18. g4 {[%emt 0:04:24]} Rb8 {[%emt 0:13:01]} 19. a3 {[%emt 0:00:20]} Qc7 {[%emt 0:02:13]} 20. Rdf1 {[%emt 0:05:39]} Re8 {[%emt 0:04:25]} 21. g5 {[%emt 0:12:34]} Bc8 {[%emt 0:02:19]} 22. Qg2 {[%emt 0:11:09]} e5 {[%emt 0:03:30]} 23. Rhg1 {[%emt 0:01:03]} hxg5 {[%emt 0:01:57]} 24. Qxg5 {[%emt 0:00:33]} f6 {[%emt 0:00:14]} 25. fxe5 {[%emt 0:00:48]} Rxe5 {[%emt 0:05:12]} 26. Rxf6+ {[%emt 0:00:09]} Kg8 {[%emt 0:00:03]} 27. Qg6 {[%emt 0:11:29]} Rh6 {[%emt 0:00:33]} 28. Qxh6 {[%emt 0:00:09]} Re1+ {[%emt 0:00:06]} 29. Rxe1 {[%emt 0:00:04]} gxh6 {[%emt 0:00:04]} 30. Rg1+ {[%emt 0:00:19]} Kh7 {[%emt 0:00:07]} 31. Rgg6 {[%emt 0:00:06]} Bd7 {[%emt 0:02:04]} 32. Rf7+ {[%emt 0:01:38]} Kh8 {[%emt 0:00:05]} 33. Rgf6 {[%emt 0:00:17]} 1-0

[Event "2nd Goa GM Open 2019"]
[Site "Goa"]
[Date "2019.06.22"]
[Round "6.17"]
[White "Sahoo, Utkal Ranjan"]
[Black "Debashis, Das"]
[Result "0-1"]
[ECO "A45"]
[WhiteElo "2371"]
[BlackElo "2544"]
[Annotator "ChessBase"]
[PlyCount "55"]
[EventDate "2019.06.17"]
[EventType "swiss"]
[EventCountry "IND"]
[SourceTitle "playchess.com"]
[Source "ChessBase"]
[SourceQuality "1"]
[TimeControl "5400+30"]

1. d4 {[%emt 0:00:00]} Nf6 {[%emt 0:00:00]} 2. Bg5 {[%emt 0:00:00]} d5 {[%emt 0:00:00]} 3. Bxf6 {[%emt 0:00:19]} exf6 {[%emt 0:00:00]} 4. e3 {[%emt 0:00:10]} c5 {[%emt 0:00:00]} 5. Nc3 {[%emt 0:01:57]} Nc6 {[%emt 0:00:00]} 6. dxc5 {[%emt 0:02:58]} Be6 {[%emt 0:00:06]} 7. Qh5 {[%emt 0:09:10]} Bxc5 {[%emt 0:08:59]} 8. Bd3 {[%emt 0:06:28]} g6 {[%emt 0:02:26]} 9. Qh6 {[%emt 0:06:36]} d4 {[%emt 0:02:14]} 10. Ne4 {[%emt 0:06:44]} Qa5+ {[%emt 0:01:50]} 11. Kf1 {[%emt 0:00:30]} Be7 {[%emt 0:00:30]} 12. Nf3 {[%emt 0:00:30]} O-O-O {[%emt 0:00:30]} 13. Ke2 {[%emt 0:00:30]} Rhe8 {[%emt 0:00:30]} 14. Rhe1 {[%emt 0:00:30]} dxe3 {[%emt 0:00:30]} 15. fxe3 {[%emt 0:00:30]} Ne5 {[%emt 0:00:30]} 16. Nxe5 {[%emt 0:00:30]} Qxe5 {[%emt 0:00:30]} 17. Kf1 {[%emt 0:00:30]} f5 {[%emt 0:00:30]} 18. Nf2 {[%emt 0:00:30]} Bc5 {[%emt 0:00:30]} 19. Rec1 {[%emt 0:00:30]} Bd5 {[%emt 0:00:30]} 20. Qf4 {[%emt 0:00:30]} Qxb2 {[%emt 0:00:30]} 21. Rab1 {[%emt 0:00:30]} Qe5 {[%emt 0:00:30]} 22. Qxe5 {[%emt 0:00:30]} Rxe5 {[%emt 0:00:30]} 23. Rb5 {[%emt 0:00:30]} Bc6 {[%emt 0:00:30]} 24. Rb3 {[%emt 0:00:30]} f4 {[%emt 0:00:30]} 25. e4 {[%emt 0:00:30]} f5 {[%emt 0:00:30]} 26. exf5 {[%emt 0:00:30]} Bxg2+ {[%emt 0:00:30]} 27. Kxg2 {[%emt 0:00:30]} Re1 {[%emt 0:00:30]} 28. Rxe1 {[%emt 0:44:01]} 0-1